Cogmind - Beta 13 @@@ ROGUE MODE // 2024.04.01 @ 14:18:05 Player: Olafz Result: Destroyed by G-34 Mercenary with Small Laser Performance ------------- Evolutions (0) 0 Regions Visited (1) 200 Robots Destroyed (11) 55 Value Destroyed (254) 254 Prototype IDs (0) 0 Alien Tech Used (0) 0 Bonus (0) 0 TOTAL SCORE: 509 Bonus ------- None Cogmind --------- Core Integrity 0/250 Matter 300/300 Energy 125/125 System Corruption 0% Temperature Cool (6) Movement Walking (190) Ox1 Location -10/Materials Parts ------- > --- POWER (1) -------- Light Ion Engine > --- PROPULSION (2) --- Aluminum Leg Aluminum Leg > --- UTILITY (2) ------ Large Storage Unit Visual Processing Unit > --- WEAPON (2) ------- Mining Claw > --- INVENTORY (15) --- Light Ion Engine Light Ion Engine Aluminum Leg Wheel Flight Unit Flight Unit Small Storage Unit Sensor Array Signal Interpreter Peak State ------------ > --- POWER ------------ Light Nuclear Core > --- PROPULSION ------- Aluminum Leg Aluminum Leg > --- UTILITY ---------- Large Storage Unit Visual Processing Unit > --- WEAPON ----------- Small Laser Assault Rifle > --- INVENTORY -------- Light Ion Engine Light Ion Engine Light Ion Engine Aluminum Leg Wheel Flight Unit Flight Unit Small Storage Unit Sensor Array Signal Interpreter [Rating: 11] Favorites ----------- Power Light Ion Engine Engine Light Ion Engine Power Core Light Nuclear Core Propulsion Aluminum Leg Leg Aluminum Leg Wheel Wheel Utility Visual Processing Unit Device Sensor Array Storage Large Storage Unit Processor Visual Processing Unit Weapon Small Laser Energy Gun Small Laser Ballistic Gun Assault Rifle Slashing Weapon Mining Claw Build | -11 -10 ------- Run | Yrd Mat Slots Evolved . | . . Power . | . . Propulsion . | . . Utility . | . . Weapon . | . . Parts Attached 15 | 5 10 Power 3 | 1 2 Engine 2 | 1 1 Core 1 | . 1 Reactor . | . . Propulsion 6 | 2 4 Treads . | . . Leg 4 | . 4 Wheel 2 | 2 . Hover . | . . Flight . | . . Utility 3 | . 3 Device 1 | . 1 Storage 1 | . 1 Processor 1 | . 1 Hackware . | . . Protection . | . . Artifact . | . . Weapon 3 | 2 1 Energy Gun 1 | 1 . Energy Cannon . | . . Ballistic Gun 1 | 1 . Ballistic Cannon . | . . Launcher . | . . Special Weapon . | . . Impact Weapon . | . . Slashing Weapon 1 | . 1 Piercing Weapon . | . . Special Melee Weapon . | . . Unidentified Prototypes . | . . Parts Lost 6 | . 6 Power 1 | . 1 Propulsion 3 | . 3 Utility . | . . Weapon 2 | . 2 Highest Loss Streak 5 | . 5 To Critical Strikes . | . . Average Slot Usage (%) 87 | . 87 Engine 8 | . 8 Core 5 | . 5 Leg 18 | . 18 Wheel 6 | . 6 Device 2 | . 2 Storage 10 | . 10 Processor 12 | . 12 Energy Gun 8 | . 8 Ballistic Gun 8 | . 8 Slashing Weapon 4 | . 4 Naked Turns . | . . Heaviest Build 28 | 6 28 Greatest Support 20 | 20 20 Greatest Overweight (x) 9 | . 9 Average Overweight (x) . | . . Largest Inventory Capacity 15 | 5 15 Average Capacity 11 | 5 12 Most Carried 10 | . 10 Average Carried 6 | . 7 Final Capacity 15 | 5 15 Final Carried 9 | . 9 Class Distribution -------------------- 60% | Scavenger-Mutant 39% | Mutant Dominant Class ---------------- Scavenger-Mutant | -10/Materials Resources | -11 -10 ----------- Run | Yrd Mat Matter Collected 398 | 265 133 Remotely . | . . Salvage Created 472 | 50 422 Parts 33 | 3 30 Haulers Intercepted . | . . Recyclers Shooed 2 | . 2 Parts Field Recycled . | . . Retrieved Matter . | . . Parts Self-Destructed . | . . Prevented . | . . Kills | -11 -10 ------- Run | Yrd Mat Combat Hostiles Destroyed 8 | 1 7 Melee 2 | . 2 Guns 6 | 1 5 Classes Destroyed 4 | 1 3 Recycler 2 | . 2 Watcher 1 | . 1 Swarmer 3 | . 3 Grunt 5 | 1 4 Best Kill Streak 7 | 1 7 Combat Bots Only 5 | 1 5 Max Kills in Single Turn 1 | 1 1 Gunslinging . | . . Exploded . | . . Melee 1 | . 1 Uniques/NPCs Destroyed . | . . Combat | -11 -10 -------- Run | Yrd Mat Hostile Shots Fired 90 | 7 83 Missed 21 | 3 18 Damage Taken 845 | 40 805 Core 253 | . 253 Absorbed by Shields . | . . Core Remaining (%) 100 | 100 . Volleys Fired 24 | 5 19 Largest 2 | 2 2 Hottest 60 | 60 60 Shots Fired 47 | 10 37 Gun 47 | 10 37 Cannon . | . . Launcher . | . . Special . | . . Kinetic 24 | 5 19 Thermal 23 | 5 18 Explosive . | . . Electromagnetic . | . . Robot Hit Streak 10 | 3 10 Robot Miss Streak 4 | 4 2 Penetration Max . | . . Secondary Targets 1 | . 1 Max Gunslinging Chain 1 | . 1 Shots Hit Robots 34 | 5 29 Core Hits 18 | 2 16 Critical Kills . | . . Critical Parts Destroyed . | . . Critical Strikes . | . . Melee Attacks 19 | . 19 Impact . | . . Slashing 19 | . 19 Piercing . | . . Sneak Attacks . | . . Combat Hostiles . | . . Follow-up Attacks . | . . Damage Inflicted 477 | 61 416 Guns 334 | 61 273 Cannons . | . . Explosions . | . . Melee 140 | . 140 Ramming 3 | . 3 Kinetic 191 | 37 154 Thermal 143 | 24 119 Explosive . | . . Electromagnetic . | . . Impact . | . . Slashing 140 | . 140 Piercing . | . . Highest Corruption . | . . Average Corruption . | . . Corruption Purged . | . . Corruption Blocked . | . . Overload Shots . | . . Overflow Damage . | . . Projectiles . | . . Explosions . | . . Melee . | . . Knockbacks . | . . Impact . | . . Kinetic . | . . Secondary . | . . Self-Inflicted Damage 1 | . 1 Shots . | . . Rammed 1 | . 1 Targets Rammed 2 | . 2 Kicked 1 | . 1 Crushed . | . . Highest Temperature 58 | 24 58 Average Temperature 21 | 16 23 Received Heat Transfer 489 | 24 465 Siege Activations . | . . Robots Corrupted . | . . Combat Hostiles . | . . Parts Fried . | . . Impact Corruptions . | . . Robots Melted . | . . Combat Hostiles . | . . Parts Melted . | . . Heat Transferred 325 | 50 275 Parts Sabotaged . | . . Parts Stolen . | . . Parts Stripped . | . . Power Chain Reactions . | . . Alert | -11 -10 ------- Run | Yrd Mat Peak Influence 262 | 20 262 Initial 13 | . 13 Average 152 | 3 176 Maximum Alert Level 1 | . 1 Low Security (%) 45 | 100 36 Level 1 54 | . 63 Level 2 . | . . Level 3 . | . . Level 4 . | . . Level 5 . | . . High Security . | . . Max Security . | . . Squads Dispatched . | . . Investigation . | . . Extermination . | . . Reinforcement . | . . Assault . | . . Garrison . | . . Intercept . | . . Searches Triggered . | . . Construction Impeded . | . . Haulers Reinforced . | . . Active Scanning Responses . | . . Cargo Convoy Interrupts . | . . Stealth | -11 -10 --------- Run | Yrd Mat Distress Signals 2 | . 2 Communications Jammed . | . . Distress Signals . | . . Times Spotted 15 | 1 14 Peak Tracking Total 4 | 1 4 Tactical Retreats 2 | . 2 Traps | -11 -10 ------- Run | Yrd Mat Traps Triggered . | . . Indirectly . | . . Trap Hack Attempts . | . . Triggered . | . . Disarmed . | . . Reprogrammed . | . . Reused . | . . Traps Extracted . | . . Installed . | . . Triggered . | . . Machines | -11 -10 ---------- Run | Yrd Mat Machines Disabled . | . . Max in Single Turn . | . . Machines Repaired . | . . Machines Dismantled . | . . Machines Sabotaged . | . . Overloaded Fab Kills . | . . Hacking | -11 -10 --------- Run | Yrd Mat Machines Accessed 1 | . 1 Terminals 1 | . 1 Fabricators . | . . Repair Stations . | . . Recycling Units . | . . Scanalyzers . | . . Garrison Access . | . . Total Hacks 1 | . 1 Successful 1 | . 1 Failed . | . . Catastrophic . | . . Database Lockouts . | . . Manual . | . . Terminals 1 | . 1 Fabricators . | . . Repair Stations . | . . Recycling Units . | . . Scanalyzers . | . . Garrison Access . | . . Terminal Hacks 1 | . 1 Branch Access Points 1 | . 1 Fabricator Hacks . | . . Repair Station Hacks . | . . Recycling Unit Hacks . | . . Scanalyzer . | . . Garrison Access Hacks . | . . Unauthorized Hacks . | . . Terminals . | . . Fabricators . | . . Repair Stations . | . . Recycling Units . | . . Scanalyzers . | . . Garrison Access . | . . Data Cores Recovered . | . . Used . | . . Hacking Detections . | . . Full Trace Events . | . . Feedback Events . | . . Feedback Blocked . | . . Robot Schematics Acquired . | . . Robots Built . | . . Authchips . | . . Time . | . . Total Robot Build Rating . | . . Part Schematics Acquired . | . . Parts Built . | . . Authchips . | . . Time . | . . Total Part Build Rating . | . . Parts Repaired . | . . Time . | . . Parts Recycled . | . . Recycled Matter . | . . Retrieved Matter . | . . Retrieved Components . | . . Parts Scanalyzed . | . . Part Schematics Acquired . | . . Parts Damaged . | . . Bothacking | -11 -10 ------------ Run | Yrd Mat Used RIF Installer . | . . Robots Hacked . | . . Non-combat . | . . Combat . | . . Robot Hacks Applied . | . . Relay Couplers Released . | . . Fabnet Peak Effective % . | . . Robots Rewired . | . . Allies Hacked . | . . Hacks Repelled . | . . Allies | -11 -10 -------- Run | Yrd Mat Total Allies . | . . Largest Group . | . . Highest-Rated Group . | . . Highest-Rated Ally . | . . Total Orders . | . . Ally Attacks . | . . Total Damage . | . . Kills . | . . Allies Corrupted . | . . Allies Melted . | . . Intel | -11 -10 ------- Run | Yrd Mat Robot Analysis Total . | . . Derelict Logs Recovered . | . . Drone Launches . | . . Drone Recoveries . | . . Exploration | -11 -10 ------------- Run | Yrd Mat Turns Passed 552 | 78 474 Spaces Moved 296 | 78 218 Core 27 | 22 5 Treads . | . . Legs 137 | . 137 Wheels 132 | 56 76 Hover . | . . Flight . | . . Fastest Speed 50 | 50 80 Average Speed 131 | 71 152 Slowest Speed 500 | 80 500 Overloaded Moves . | . . Propulsion Burnouts . | . . Robots Hopped . | . . Cave-ins Triggered . | . . Exploration Rate (%) 18 | 6 30 Regions Visited 1 Branch Regions . Pre-discovered Areas . | . . Known Exits Taken . | . . Unknown Exits Taken 1 | 1 . Scrap Searched . | . . Spaces Dug 10 | . 10 Terrain Destroyed 10 | . 10 Melee 10 | . 10 Projectile . | . . AOE . | . . Terrain Rammed . | . . Walls Destroyed . | . . Machines Disabled . | . . Actions | -11 -10 --------- Run | Yrd Mat Total 367 | 87 280 Wait . | . . Move 295 | 77 218 Hop . | . . Pick Up 10 | . 10 Fast Attach 11 | 5 6 Attach 3 | . 3 Detach 1 | . 1 Swap 1 | . 1 Drop 1 | . 1 Fire 24 | 5 19 Melee 19 | . 19 Ram 1 | . 1 Kick 1 | . 1 Crush . | . . Escape Stasis . | . . Rewire . | . . Trap . | . . Miscellaneous . | . . Route ------- -11/Scrapyard -10/Materials (discovered 2 exits: *Min x2) History --------- Turn | Location | Event 2 | -11/Scrapyard | Met Revision 17 48 | -11/Scrapyard | Discovered new exit (range 8) 79 | -11/Scrapyard | Entered Materials 88 | -10/Materials | Identified exit to Mines 395 | -10/Materials | Core integrity fell below 50% 417 | -10/Materials | Core integrity fell below 20% 440 | -10/Materials | Lost 5 parts (1p2n2w) 553 | -10/Materials | Destroyed by G-34 Mercenary with Small Laser Last Messages --------------- 00266_ K-01 Serf collects debris. 00276_ Kicked K-01 Serf. 00280_ Acquired 2 matter. 00291_ W-16 Scout sends out distress signal. 00307_ Acquired 1 matter. 00339_ Critical hit (Burn: +37). 00372_ Sml. Laser destroyed. 00374_ Assault Rifle destroyed. 00377_ Lgt. Nuclear Core destroyed. 00395_ Acquired Mining Claw. 00399_ Atomic Centrifuge disabled. 00405_ Aluminum Leg destroyed. 00409_ G-47 Trooper destroyed. 00421_ G-34 Mercenary destroyed. 00425_ Acquired 20 matter. 00430_ Acquired Aluminum Leg. 00436_ Acquired 10 matter. 00469_ The unstable cave ceiling collapses. 00527_ K-01 Serf collects debris. 00529_ W-16 Scout sends out distress signal. Map ----- +----------------------------------------------------+ | ?????????????????????????????????????????????????? | | ?????????????????????????????????????????????????? | | ?????????????????????????????????????????????????? | | ?????????????????????????????????????????????????? | | ?????????????????????????????????????????????????? | | ??????????????????? ???????????????????????????? | | ??????????????????# #??????????????????????????? | | ####??????????????# #??????????????????????????? | | #??????????????# #??????????????????????????? | | "#??????????????# #??????????????????????????? | | "#??????????????# #??????????????????????????? | | "#??????????????# #??????????????????????????? | | T#??????????????+ +??????????????????????????? | | "#??????????????# #??????????????????????????? | | "#??????????????# #??????????????????????????? | | !["#######????????# #?????## ##????????????????? | | %= # # #????????# ###### +????????????????? | | ########"########## #?????????????????? | | + #= ## ^ #?????????????????? | | # "" # ## """"" #?????????????????? | | # "Y # # """"" #?????????????????? | | + "" # # """"" #?????????????????? | | # # + #?????????????????? | | # = # # ! ua +?????????????????? | | ^# # # #g### #?????????????????? | | # """ # # #;@#????#?????????????????? | | + """ ########+## ##" ???????????????????? | | # """ #???????? ##"" #????????????????? | | # """ #?????? ##|| #????????????????? | | # #?????# ##"" > #????????????????? | | #######?????## #### ####!! #????????????????? | | #?#########??# ???# #??#"" #????????????????? | | #? ! #??#????# #??#" #????????????????? | | # #???????#+#??#### ##????????????????? | | # "Y" #???????????????? #?????????????????? | | + """ #????????????????? #?????????????????? | | ##########?????????????????? #?????????????????? | | # """ #????????????????????????????????????????? | | # """ #????????????????????????????????????????? | | %# """ #????????????????????????????????????????? | | # #???????????? ???????????????????????? | | # ##### ???????????????????????? | | %+ + ???????????????????????? | | #############+###???????????????????????????????? | | #???????????????????????????????????????????????? | | #?######????????????????????????????????????????? | | #? #????????????????????????????????????????? | | # """ #????????????????????????????????????????? | | # """ #????????????????????????????????????????? | | + """ #????????????????????????????????????????? | +----------------------------------------------------+ Best States ------------- Heat Dissipation 25 Energy Generation 14 Energy Capacity 160 Matter Stores 300 Matter Capacity 300 Sight Range 18 Robot Scan Range 14 Terrain Scan Density 10 Evasion (%) 50 Item Schematics ----------------- None Robot Schematics ------------------ None Fabricated ------------ Nothing Alien Tech Used ----------------- None Achievements -------------- None Challenges ------------ None Game ------ Seed HellfireCommReconfigurator Manual? 0 Play Time 00:09:43 Cumulative 5.9 hours Start 2024.04.01 @ 14:11:10 End 2024.04.01 @ 14:18:05 Sessions 1 Manual Loads 0 Difficulty Rogue Special Mode None Game No. 11 Rogue 9 Adventurer 2 Explorer 0 Win Type - Total 0 Types 0/0/0/0/0/0/0/0/0 Lore% 12 Gallery% 13 Achievement% 12 Wizard Run 0 Options --------- Layout 0 ASCII 0 Keyboard 1 Movement Arrows Keybinds 0 Fullscreen 2 Font 18/SmallcapsGlow Map View 76x50 Zoom Use 0% Tactical HUD 1 Map Filters NONE Filters NONE Steam 1 RUN: eb0f7fbd-5506-419f-af0c-0c737d9b93a7